fUST/lending_fUST_20250704
["ID","MTS","AMOUNT","RATE_DAILY","PERIOD"]
[369365015,1751559049482,-210.090478,0.00022265,7]
[369365016,1751559049492,-2600.31911449,0.00022279,2]
[369365017,1751559049501,-356.635566,0.000223,2]
[369365018,1751559049511,-356.635566,0.000223,2]
[369365019,1751559049520,-716.85773004,0.00022381,2]
[369365020,1751559049530,-279.251256,0.0002239,7]
[369365021,1751559049541,-151.0,0.0002239,7]
[369365022,1751559049551,-2952.13710284,0.0002239,2]
[369365023,1751559049561,-381.340545,0.0002239,7]
[369365024,1751559049571,-381.340545,0.0002239,7]
[369365025,1751559049580,-510.60027015,0.0002239,2]
[369365026,1751559049590,-150.0,0.00022399,2]
[369365027,1751559049599,-2151.0,0.00022448,2]
[369365028,1751559049610,-646.0,0.00022448,2]
[369365029,1751559049619,-260.617,0.00022448,2]
[369365030,1751559049629,-406.0,0.00022448,2]
[369365031,1751559049639,-1225.32,0.00022464,2]
[369365032,1751559049648,-724.15,0.00022465,2]
[369365033,1751559049658,-828.51,0.00022465,2]
[369365034,1751559049667,-831.34,0.00022465,2]
[369365035,1751559049677,-493.27,0.00022465,2]
[369365036,1751559049688,-716.24,0.00022465,2]
[369365037,1751559049701,-787.62,0.00022465,2]
[369365038,1751559049710,-569.22,0.00022465,2]
[369365039,1751559049720,-500.39,0.00022465,2]
[369365040,1751559049730,-708.51,0.00022465,2]
[369365041,1751559049739,-917.1,0.00022465,2]
[369365042,1751559049750,-529.92,0.00022465,2]
[369365043,1751559049759,-150.0,0.00022473,2]
[369365044,1751559049769,-150.0,0.00022473,2]
[369365046,1751559049779,-168.0,0.00022487,2]
[369365048,1751559049788,-293.45627482,0.00022489,2]
[369365050,1751559049798,-500.0,0.00022489,10]
[369365052,1751559049807,-500.0,0.00022489,10]
[369365054,1751559049818,-500.0,0.00022489,10]
[369365056,1751559049827,-500.0,0.00022489,10]
[369365057,1751559049836,-500.0,0.00022489,10]
[369365059,1751559049846,-151.0,0.00022489,2]
[369365061,1751559049856,-151.0,0.00022489,6]
[369365063,1751559049866,-2460.83097615,0.0002249,2]
[369365065,1751559049875,-4642.52096105,0.0002249,2]
[369365067,1751559049884,-49849.24998706,0.0002249,7]
[369365071,1751559049974,-1302.9840508,0.0002249,7]
[369365072,1751559050020,-510.41,0.00021369,2]
[369365073,1751559050029,-510.41,0.00021643,2]
[369365074,1751559050040,-510.41,0.00021917,2]
[369365075,1751559050050,-510.41,0.00022191,2]
[369365076,1751559050060,-3586.14584053,0.0002249,7]
[369365077,1751559050072,-488.35615697,0.0002249,7]
[369365078,1751559050115,-314.27623494,0.00021028,2]
[369365079,1751559050125,-510.41,0.00022465,2]
[369365080,1751559050280,-9975.31376506,0.0002249,7]
[369365081,1751559050293,-5000.81603815,0.0002249,7]
[369365082,1751559050309,-185158.88070636,0.0002249,7]
[369365083,1751559050332,-537.6576842,0.0002249,7]
[369365127,1751559091062,200.0,0.00025554,120]
[369365129,1751559145562,254.931494,0.00013699,2]
[369365130,1751559151085,200.0,0.00024991,120]
[369365132,1751559181944,-576861.47329115,0.0002449,30]
[369365133,1751559181977,-769.24,0.00024917,30]
[369365134,1751559182002,-21545.83858711,0.0002499,30]
[369365135,1751559182030,-2000.0,0.00025,30]
[369365136,1751559182055,-837.389109,0.00025,30]
[369365137,1751559182078,-12575.98004106,0.00025,30]
[369365138,1751559182103,-230.37558374,0.00025,30]
[369365139,1751559182127,-215.07701991,0.00025,30]
[369365140,1751559182151,-160.0,0.00025,30]
[369365141,1751559182175,-213.94585247,0.00025,30]
[369365142,1751559182198,-160.0,0.00025,30]
[369365143,1751559182222,-524.79141297,0.00025,30]
[369365144,1751559182247,-847.79783075,0.00025,30]
[369365145,1751559182275,-155.2,0.000251,31]
[369365146,1751559182303,-155.2,0.000251,31]
[369365147,1751559182331,-155.2,0.000251,31]
[369365148,1751559182360,-155.2,0.000251,31]
[369365149,1751559182574,-155.2,0.000251,31]
[369365150,1751559182603,-155.2,0.000251,31]
[369365151,1751559182631,-155.2,0.000251,31]
[369365152,1751559182660,-155.2,0.000251,31]
[369365153,1751559182685,-2000.0,0.00025196,60]
[369365154,1751559182718,-155.2,0.000255,31]
[369365155,1751559182748,-155.2,0.000255,31]
[369365156,1751559182778,-155.2,0.000255,31]
[369365157,1751559182807,-155.2,0.000255,31]
[369365158,1751559182834,-155.2,0.000255,31]
[369365159,1751559182861,-155.2,0.000255,31]
[369365160,1751559182885,-155.0,0.00025554,30]
[369365161,1751559182915,-155.2,0.000258,31]
[369365162,1751559182943,-155.2,0.000258,31]
[369365163,1751559182971,-155.2,0.000258,31]
[369365164,1751559182999,-155.2,0.000258,31]
[369365165,1751559183027,-155.2,0.000258,31]
[369365166,1751559183054,-155.2,0.000258,31]
[369365167,1751559183080,-3049.0,0.000261,30]
[369365168,1751559183109,-155.2,0.000262,31]
[369365169,1751559183139,-155.2,0.000262,31]
[369365170,1751559183168,-155.2,0.000262,31]
[369365171,1751559183197,-155.2,0.000262,31]
[369365172,1751559183227,-155.2,0.000262,31]
[369365173,1751559183257,-155.2,0.000262,31]
[369365174,1751559183291,-155.2,0.000266,31]
[369365175,1751559183321,-155.2,0.000266,31]
[369365176,1751559183351,-155.2,0.000266,31]
[369365177,1751559183378,-12000.0,0.0002679,30]
[369365178,1751559183405,-2388.0,0.00027,90]
[369365179,1751559183433,-4076.0,0.00027397,30]
[369365180,1751559183460,-151.61627385,0.00027398,120]
[369365181,1751559183485,-783.41,0.00027427,30]
[369365182,1751559183510,-822.80466859,0.000275,30]
[369365183,1751559183536,-644.43753,0.000278,120]
[369365184,1751559183561,-200.0,0.000278,120]
[369365185,1751559183589,-305.57643,0.000284,120]
[369365186,1751559183615,-718.33430141,0.000285,30]
[369365187,1751559183640,-644.43753,0.000286,120]
[369365188,1751559183666,-244.43753,0.000286,120]
[369365189,1751559183691,-210.64374,0.00029,120]
[369365190,1751559183719,-1553.27648127,0.00029,120]
[369365191,1751559183744,-644.43753,0.000294,120]
[369365192,1751559183771,-783.41,0.00029827,30]
[369365193,1751559183797,-204.86056263,0.0003,120]
[369365194,1751559183823,-1000.0,0.0003,120]
[369365195,1751559183847,-200.0,0.0003,120]
[369365196,1751559183871,-200.12866046,0.0003,120]
[369365197,1751559183896,-322.11312715,0.0003,120]
[369365198,1751559183922,-12575.98004106,0.0003,120]
[369365199,1751559183947,-213.94585247,0.0003,120]
[369365200,1751559183971,-644.43753,0.000302,120]
[369365201,1751559183996,-644.43753,0.00031,120]
[369365202,1751559184021,-160.0,0.00031,120]
[369365203,1751559184046,-837.389109,0.00031,120]
[369365204,1751559184071,-230.37558374,0.00031,120]
[369365205,1751559184095,-215.07701991,0.00031,120]
[369365206,1751559184120,-160.0,0.00031,120]
[369365207,1751559184147,-783.41,0.00031227,30]
[369365208,1751559184172,-210.64374,0.000313,120]
[369365209,1751559184198,-200.0,0.0003149,120]
[369365210,1751559184224,-200.0,0.0003149,120]
[369365211,1751559184249,-200.0,0.0003149,120]
[369365212,1751559184275,-200.0,0.0003149,120]
[369365213,1751559184302,-644.43753,0.000318,120]
[369365214,1751559184330,-1000.0,0.00032,120]
[369365215,1751559184359,-644.43753,0.000326,120]
[369365216,1751559184387,-700.17461703,0.0003287,120]
[369365217,1751559184415,-5000.0,0.00032979,30]
[369365218,1751559184441,-2720.03,0.00032979,30]
[369365219,1751559184471,-1000.0,0.00033,120]
[369365220,1751559184498,-644.4376,0.000334,120]
[369365221,1751559184522,-210.64376,0.000336,120]
[369365222,1751559184546,-167.0,0.00033694,30]
[369365223,1751559184571,-1000.0,0.00034,120]
[369365224,1751559184595,-521.0,0.00034862,30]
[369365225,1751559184619,-223.63,0.0003493,30]
[369365226,1751559184643,-150.0,0.00035,69]
[369365227,1751559184667,-444.86879665,0.00035,120]
[369365228,1751559184692,-210.79166566,0.00035,30]
[369365229,1751559184720,-206.0,0.00035,30]
[369365230,1751559184746,-200.0,0.00035,120]
[369365231,1751559184771,-300.0,0.00035,120]
[369365232,1751559184799,-276.0,0.00035,60]
[369365233,1751559184826,-153.0,0.00035,120]
[369365234,1751559184852,-521.0,0.00035155,30]
[369365235,1751559184878,-1000.0,0.00036,120]
[369365236,1751559184905,-5447.43968059,0.00036898,120]
[369365237,1751559184933,-521.0,0.00036912,30]
[369365238,1751559184959,-200.0,0.00037788,120]
[369365239,1751559184986,-200.0,0.00037788,120]
[369365240,1751559185010,-200.0,0.00037788,120]
[369365241,1751559185037,-200.0,0.00037788,120]
[369365242,1751559185071,-215.56041889,0.00037788,120]
[369365243,1751559185102,-1000.0,0.00038,120]
[369365244,1751559185127,-3703.05071963,0.00038,30]
[369365245,1751559185154,-361822.23725273,0.00038,120]
[369365246,1751559185180,-879.76281871,0.000383,120]
[369365247,1751559185206,-279.93977156,0.000387,120]
[369365248,1751559185234,-172.0,0.00039014,50]
[369365249,1751559185259,-503.76132379,0.00039596,30]
[369365250,1751559185284,-99999.0,0.0004,30]
[369365251,1751559185309,-255.15152723,0.0004,30]
[369365252,1751559185333,-235.09218725,0.0004,120]
[369365253,1751559185357,-166.70386936,0.0004,30]
[369365254,1751559185383,-1000.0,0.0004,120]
[369365255,1751559185408,-2000.0,0.0004,120]
[369365256,1751559185433,-1022.87915,0.0004,30]
[369365257,1751559185460,-200.0,0.0004,120]
[369365258,1751559185486,-1140.94057493,0.0004,120]
[369365259,1751559185510,-2000.31,0.0004,120]
[369365260,1751559185537,-1000.0,0.0004,100]
[369365261,1751559185562,-500.0,0.0004,120]
[369365262,1751559185587,-9126.18709762,0.0004,30]
[369365263,1751559185613,-1653.70331079,0.0004,120]
[369365264,1751559185639,-837.389109,0.0004,120]
[369365265,1751559185665,-230.37558374,0.0004,120]
[369365266,1751559185691,-215.07701991,0.0004,120]
[369365267,1751559185720,-160.0,0.0004,120]
[369365268,1751559185746,-213.94585247,0.0004,120]
[369365269,1751559185771,-160.0,0.0004,120]
[369365270,1751559185797,-155.0,0.0004,120]
[369365271,1751559185823,-524.79141297,0.0004,120]
[369365272,1751559185848,-152.0,0.00041041,31]
[369365273,1751559185873,-500.0,0.00041085,30]
[369365274,1751559185897,-500.0,0.00041085,30]
[369365275,1751559185921,-500.0,0.00041085,30]
[369365276,1751559185946,-500.0,0.00041085,30]
[369365277,1751559185971,-500.0,0.00041085,30]
[369365278,1751559185996,-500.0,0.00041085,30]
[369365279,1751559186192,-700.0,0.00041095,120]
[369365280,1751559186219,-164.05685502,0.00041095,120]
[369365281,1751559201017,-1000.0,0.00024647,30]
[369365282,1751559201041,-2000.0,0.00024647,30]
[369365283,1751559201064,-2000.0,0.00024647,30]
[369365284,1751559201088,-2000.0,0.00024647,30]
[369365285,1751559201112,-2000.0,0.00024647,30]
[369365286,1751559201135,-2000.0,0.00024647,30]
[369365287,1751559201160,-529.599999,0.00024647,30]
[369365288,1751559201184,-10000.0,0.00024647,30]
[369365289,1751559201209,-2000.0,0.00024647,30]
[369365290,1751559201234,-529.799999,0.00024647,30]
[369365291,1751559211912,200.0,0.00025773,120]
[369365292,1751559213935,-5000000.0,0.00024647,20]
[369365293,1751559224440,-2522961.73572693,0.00024647,20]
[369365294,1751559224467,-207195.59685435,0.00024647,20]
[369365295,1751559224491,-470746.42550193,0.00024647,20]
[369365296,1751559224521,-189556.29716739,0.00024647,20]
[369365297,1751559224546,-145987.05780859,0.00024647,20]
[369365298,1751559224570,-333170.75042707,0.00024647,20]
[369365299,1751559224595,-236208.91567512,0.00024647,20]
[369365300,1751559224619,-250024.24475772,0.00024647,20]
[369365301,1751559224643,-614757.90178415,0.00024647,20]
[369365302,1751559224668,-29391.07429675,0.00024647,20]
[369365303,1751559240326,-325.0,0.00038,30]
[369365304,1751559240354,-325.0,0.0003863,90]
[369365305,1751559240382,-2003.05,0.0004,120]
[369365306,1751559240408,-325.0,0.00040274,90]
[369365307,1751559240435,-192.22692081,0.000413,120]
[369365308,1751559240461,-500.0,0.00041385,60]
[369365309,1751559240487,-22411.2770876,0.00041388,60]
[369365310,1751559240512,-970.71651707,0.000418,120]
[369365311,1751559240538,-11112.0,0.0004187,120]
[369365312,1751559240564,-1219.0,0.00041949,50]
[369365313,1751559240590,-92016.52356334,0.00041987,60]
[369365314,1751559240615,-1000.0,0.00042,120]
[369365315,1751559240640,-200.0,0.00042,120]
[369365316,1751559240666,-12789.71518071,0.00042,120]
[369365317,1751559240690,-50000.0,0.00042,30]
[369365318,1751559240715,-1837.0,0.00042,120]
[369365319,1751559240743,-1162.23556996,0.00042,120]
[369365320,1751559240767,-461.41,0.000422,120]
[369365321,1751559240792,-332.0,0.00042288,90]
[369365322,1751559240819,-182.0,0.00042301,74]
[369365323,1751559240844,-152.0,0.00042361,31]
[369365324,1751559240869,-1759.67445803,0.000424,120]
[369365325,1751559240893,-5000.0,0.0004249,90]
[369365326,1751559240917,-1000.0,0.000425,60]
[369365327,1751559240942,-1000.0,0.000425,90]
[369365328,1751559240966,-1000.0,0.000425,90]
[369365329,1751559240991,-1000.0,0.000425,60]
[369365330,1751559241015,-1000.0,0.000425,60]
[369365331,1751559241040,-1000.0,0.000425,30]
[369365332,1751559241065,-1000.0,0.000425,30]
[369365333,1751559241089,-531.68,0.000425,90]
[369365334,1751559241115,-183.334,0.00042654,65]
[369365335,1751559241140,-1445.3724293,0.0004315,120]
[369365336,1751559241165,-5000.0,0.0004349,90]
[369365337,1751559241192,-152.0,0.0004368,31]
[369365338,1751559241219,-1000.0,0.000438,90]
[369365339,1751559241243,-1000.0,0.000438,90]
[369365340,1751559241268,-1000.0,0.000438,90]
[369365341,1751559241293,-1000.0,0.000438,90]
[369365342,1751559241317,-255.3845,0.00043817,120]
[369365343,1751559241342,-666.0,0.00043835,120]
[369365344,1751559241367,-666.0,0.00043835,120]
[369365345,1751559241392,-666.0,0.00043835,120]
[369365346,1751559241416,-666.0,0.00043835,120]
[369365347,1751559241443,-666.0,0.00043835,120]
[369365348,1751559241467,-230.51930828,0.00043835,120]
[369365349,1751559241494,-200.0,0.00043835,32]
[369365350,1751559241518,-151.0,0.00043835,32]
[369365351,1751559241544,-500.0,0.00043835,30]
[369365352,1751559241568,-151.0,0.00043835,31]
[369365353,1751559241595,-500.0,0.00043835,31]
[369365354,1751559241619,-151.0,0.00043835,31]
[369365355,1751559241648,-151.0,0.00043835,30]
[369365356,1751559241673,-300.0,0.00043835,30]
[369365357,1751559241697,-300.0,0.00043835,31]
[369365358,1751559241723,-151.0,0.00043835,31]
[369365359,1751559241752,-500.0,0.00043835,32]
[369365360,1751559241779,-500.0,0.00043835,31]
[369365361,1751559241807,-500.0,0.00043835,32]
[369365362,1751559241834,-666.0,0.00043835,30]
[369365363,1751559241861,-500.0,0.00043835,31]
[369365364,1751559241889,-500.0,0.00043835,32]
[369365365,1751559241915,-5000.0,0.00043835,31]
[369365366,1751559241940,-5000.0,0.00043835,30]
[369365367,1751559241966,-151.0,0.00043835,32]
[369365368,1751559241991,-151.0,0.00043835,30]
[369365369,1751559242017,-500.0,0.00043836,31]
[369365370,1751559242044,-500.0,0.00043836,31]
[369365371,1751559242070,-500.0,0.00043836,31]
[369365372,1751559242096,-500.0,0.00043836,31]
[369365373,1751559242123,-500.0,0.00043836,31]
[369365374,1751559242150,-500.0,0.00043836,31]
[369365375,1751559242180,-500.0,0.00043836,31]
[369365376,1751559242208,-500.0,0.00043836,31]
[369365377,1751559242236,-500.0,0.00043836,31]
[369365378,1751559242264,-500.0,0.00043836,31]
[369365379,1751559242294,-500.0,0.00043836,31]
[369365380,1751559242322,-500.0,0.00043836,31]
[369365381,1751559242349,-500.0,0.00043836,31]
[369365382,1751559242376,-500.0,0.00043836,31]
[369365383,1751559242402,-500.0,0.00043836,31]
[369365384,1751559242429,-500.0,0.00043836,31]
[369365385,1751559242457,-500.0,0.00043836,31]
[369365386,1751559242491,-500.0,0.00043836,31]
[369365387,1751559242518,-500.0,0.00043836,31]
[369365388,1751559242544,-500.0,0.00043836,31]
[369365389,1751559242570,-500.0,0.00043836,31]
[369365390,1751559242597,-500.0,0.00043836,31]
[369365391,1751559242623,-500.0,0.00043836,31]
[369365392,1751559242649,-500.0,0.00043836,31]
[369365393,1751559242680,-500.0,0.00043836,31]
[369365394,1751559242730,-500.0,0.00043836,31]
[369365395,1751559242788,-500.0,0.00043836,31]
[369365396,1751559242841,-500.0,0.00043836,31]
[369365397,1751559242894,-500.0,0.00043836,31]
[369365398,1751559242944,-500.0,0.00043836,31]
[369365399,1751559242990,-219.19599762,0.00043836,31]
[369365400,1751559243018,-500.0,0.00043836,31]
[369365401,1751559243048,-500.0,0.00043836,31]
[369365402,1751559243076,-500.0,0.00043836,31]
[369365403,1751559243105,-500.0,0.00043836,31]
[369365404,1751559243141,-472.76397859,0.00043836,31]
[369365405,1751559243170,-500.0,0.00043836,31]
[369365406,1751559243198,-500.0,0.00043836,31]
[369365407,1751559243225,-500.0,0.00043836,31]
[369365408,1751559243253,-500.0,0.00043836,31]
[369365409,1751559243281,-500.0,0.00043836,31]
[369365410,1751559243310,-500.0,0.00043836,31]
[369365411,1751559243339,-1407.49428949,0.00043836,31]
[369365412,1751559243368,-1407.49428949,0.00043836,31]
[369365413,1751559243397,-1407.49428949,0.00043836,31]
[369365414,1751559243427,-1407.49428949,0.00043836,31]
[369365415,1751559243457,-1407.49428949,0.00043836,31]
[369365416,1751559243486,-1407.49428949,0.00043836,31]
[369365417,1751559243516,-1407.49428949,0.00043836,31]
[369365418,1751559243545,-1407.49428949,0.00043836,31]
[369365419,1751559243746,-1407.49428949,0.00043836,31]
[369365420,1751559243779,-1407.49428949,0.00043836,31]
[369365421,1751559243807,-1407.49428949,0.00043836,31]
[369365422,1751559243835,-1407.49428949,0.00043836,31]
[369365423,1751559243863,-1407.49428949,0.00043836,31]
[369365424,1751559243890,-1657.71549651,0.00043836,31]
[369365425,1751559243917,-1407.49428949,0.00043836,31]
[369365426,1751559243945,-1407.49428949,0.00043836,31]
[369365427,1751559243971,-1407.49428949,0.00043836,31]
[369365428,1751559243999,-1407.49428949,0.00043836,31]
[369365429,1751559244028,-1407.49428949,0.00043836,31]
[369365430,1751559244060,-1407.49428949,0.00043836,31]
[369365431,1751559244088,-1657.71549651,0.00043836,31]
[369365432,1751559244115,-1407.49428949,0.00043836,31]
[369365433,1751559244142,-1407.49428949,0.00043836,31]
[369365434,1751559244170,-1657.71549651,0.00043836,31]
[369365435,1751559244197,-1407.49428949,0.00043836,31]
[369365436,1751559244226,-1407.49428949,0.00043836,31]
[369365437,1751559244255,-1407.49428949,0.00043836,31]
[369365438,1751559244283,-1407.49428949,0.00043836,31]
[369365439,1751559244311,-1407.49428949,0.00043836,31]
[369365440,1751559244339,-1657.71549651,0.00043836,31]
[369365441,1751559244369,-1407.49428949,0.00043836,31]
[369365442,1751559244396,-1407.49428949,0.00043836,31]
[369365443,1751559244424,-1407.49428949,0.00043836,31]
[369365444,1751559244454,-1407.49428949,0.00043836,31]
[369365445,1751559244484,-1407.49428949,0.00043836,31]
[369365446,1751559244512,-1407.49428949,0.00043836,31]
[369365447,1751559244543,-1407.49428949,0.00043836,31]
[369365448,1751559244573,-1657.71549651,0.00043836,31]
[369365449,1751559244602,-1407.49428949,0.00043836,31]
[369365450,1751559244631,-1407.49428949,0.00043836,31]
[369365451,1751559244659,-1407.49428949,0.00043836,31]
[369365452,1751559244687,-1407.49428949,0.00043836,31]
[369365453,1751559244715,-1407.49428949,0.00043836,31]
[369365454,1751559244746,-1407.49428949,0.00043836,31]
[369365455,1751559244775,-1407.49428949,0.00043836,31]
[369365456,1751559244803,-1372.30693223,0.00043836,31]
[369365457,1751559244831,-1372.30693223,0.00043836,31]
[369365458,1751559244859,-1372.30693223,0.00043836,31]
[369365459,1751559244887,-1372.30693223,0.00043836,31]
[369365460,1751559244917,-1372.30693223,0.00043836,31]
[369365461,1751559244945,-1372.30693223,0.00043836,31]
[369365462,1751559244974,-1372.30693223,0.00043836,31]
[369365463,1751559245002,-1372.30693223,0.00043836,31]
[369365464,1751559245032,-1829.74257631,0.00043836,31]
[369365465,1751559245061,-1372.30693223,0.00043836,31]
[369365466,1751559245090,-1372.30693223,0.00043836,31]
[369365467,1751559245117,-1372.30693223,0.00043836,31]
[369365468,1751559245146,-1372.30693223,0.00043836,31]
[369365469,1751559245171,-1312.0,0.00043988,66]
[369365470,1751559245199,-1000.0,0.00044,120]
[369365471,1751559245225,-2726.95797742,0.00044,120]
[369365472,1751559245252,-6249.3225,0.000444,120]
[369365473,1751559245279,-5000.0,0.0004449,90]
[369365474,1751559245305,-11111.0,0.000445,120]
[369365475,1751559245337,-2174.50580788,0.0004452,120]
[369365476,1751559245363,-40959.31329988,0.000448,120]
[369365477,1751559245390,-1000.0,0.00045,120]
[369365478,1751559245416,-1229.63787219,0.00045,120]
[369365479,1751559245443,-50252.26237436,0.00045,30]
[369365480,1751559245468,-10028.04449145,0.00045,120]
[369365481,1751559245496,-152.0,0.00045,31]
[369365482,1751559245521,-325.0,0.00045107,90]
[369365483,1751559245549,-5000.0,0.0004549,90]
[369365484,1751559245578,-162.0,0.00045589,108]
[369365485,1751559245606,-200.0,0.00045682,120]
[369365486,1751559245635,-200.0,0.0004597,120]
[369365487,1751559245663,-1000.0,0.00046,120]
[369365488,1751559245687,-153.0,0.000461,120]
[369365489,1751559245715,-500.0,0.0004649,120]
[369365490,1751559245745,-500.0,0.0004649,120]
[369365491,1751559245769,-570.35076965,0.0004649,120]
[369365492,1751559245798,-10000.0,0.0004649,90]
[369365493,1751559245832,-10000.0,0.0004749,95]
[369365494,1751559245865,-1000.0,0.0004749,120]
[369365495,1751559245893,-325.0,0.00047926,90]
[369365496,1751559245921,-4325.74512847,0.00048,120]
[369365497,1751559245952,-1000.0,0.00048,120]
[369365498,1751559245981,-325.0,0.00048329,90]
[369365499,1751559246011,-9129.48503807,0.00048398,120]
[369365500,1751559246042,-10000.0,0.0004849,95]
[369365501,1751559252466,4840.73966502,0.00048248,60]
[369365502,1751559252500,4992.01277955,0.0004873,60]
[369365503,1751559252568,534.21332095,0.00049213,60]
[369365507,1751559411259,154.0,0.00024,120]
[369365508,1751559524102,8507.05,0.0001497,2]
[369365509,1751559635285,656.16825,0.00027,120]
[369365510,1751559691881,200.0,0.00027152,120]
[369365525,1751560029403,-221.189323,0.00015505,2]
[369365526,1751560029424,-516.418865,0.00015882,2]
[369365527,1751560029446,-200.2095978,0.00016338,2]
[369365528,1751560029467,-90.75800025,0.00016424,2]
[369365531,1751560039111,-160.0,0.00016331,2]
[369365532,1751560039133,-267.41425803,0.00016424,2]
[369365534,1751560111056,200.0,0.00023671,120]
[369365540,1751560162237,1278.0,0.00024684,60]
[369365568,1751560233253,-426.18,0.00015642,2]
[369365600,1751560238659,-773.82,0.00015642,2]
[369365602,1751560238670,-608.62095861,0.00015642,2]
[369365604,1751560238679,-121.0484331,0.00015642,2]
[369365606,1751560238691,-378.9515669,0.00015642,2]
[369365608,1751560238701,-361.78765699,0.00015642,2]
[369365611,1751560238712,-500.0,0.00015642,2]
[369365613,1751560238722,-500.0,0.00015642,2]
[369365615,1751560238732,-218.59164182,0.00015642,2]
[369365630,1751560238862,-281.40835818,0.00015642,2]
[369365632,1751560238872,-500.0,0.00015642,2]
[369365634,1751560238882,-500.0,0.00015642,2]
[369365636,1751560238892,-500.0,0.00015642,2]
[369365638,1751560238901,-500.0,0.00015642,2]
[369365641,1751560238911,-500.0,0.00015642,2]
[369365643,1751560238920,-500.0,0.00015642,2]
[369365645,1751560238930,-500.0,0.00015642,2]
[369365647,1751560238939,-500.0,0.00015642,2]
[369365648,1751560238948,-500.0,0.00015642,2]
[369365649,1751560238958,-500.0,0.00015642,2]
[369365651,1751560238968,-500.0,0.00015642,2]
[369365653,1751560238977,-266.36875476,0.00015642,2]
[369365655,1751560238988,-500.0,0.00015642,2]
[369365657,1751560238999,-500.0,0.00015642,2]
[369365659,1751560239009,-500.0,0.00015642,2]
[369365661,1751560239019,-500.0,0.00015642,2]
[369365663,1751560239028,-500.0,0.00015642,2]
[369365665,1751560239038,-500.0,0.00015642,2]
[369365667,1751560239048,-500.0,0.00015642,2]
[369365669,1751560239058,-500.0,0.00015642,2]
[369365671,1751560239068,-500.0,0.00015642,2]
[369365673,1751560239078,-500.0,0.00015642,2]
[369365675,1751560239090,-500.0,0.00015642,2]
[369365677,1751560239101,-500.0,0.00015642,2]
[369365679,1751560239111,-552.27225053,0.00015642,2]
[369365681,1751560239120,-500.0,0.00015642,2]
[369365683,1751560239129,-500.0,0.00015642,2]
[369365686,1751560239139,-500.0,0.00015642,2]
[369365688,1751560239149,-500.0,0.00015642,2]
[369365690,1751560239159,-500.0,0.00015642,2]
[369365692,1751560239168,-24900.0,0.00015643,2]
[369365694,1751560239179,-411.31885303,0.00016437,2]
[369365696,1751560239189,-460.0,0.00016438,2]
[369365698,1751560239198,-460.0,0.00016438,2]
[369365700,1751560239207,-460.0,0.00016438,2]
[369365702,1751560239218,-460.0,0.00016438,2]
[369365703,1751560239227,-460.0,0.00016438,2]
[369365706,1751560239236,-460.0,0.00016438,2]
[369365708,1751560239246,-460.0,0.00016438,2]
[369365710,1751560239255,-539.24,0.00016438,2]
[369365712,1751560239265,-460.0,0.00016438,2]
[369365714,1751560239274,-460.0,0.00016438,2]
[369365716,1751560239285,-206.89,0.00016438,2]
[369365718,1751560239295,-460.0,0.00016438,2]
[369365720,1751560239304,-460.0,0.00016438,2]
[369365722,1751560239313,-460.0,0.00016438,2]
[369365724,1751560239322,-220.28,0.00016438,2]
[369365726,1751560239332,-460.0,0.00016438,2]